[Event "Titled Tuesday Blitz April 18 Early 2023"]
[White "Jovic, Stanoje"]
[Black "hsd2016"]
[WhiteFideId "905020"]
[WhiteElo "2236"]
[BlackElo "2196"]
[Result "1-0"]
[Round "09"]
[TimeControl "180+2"]
[Date "2023.04.18"]
[WhiteClock "0:00:16"]
[BlackClock "0:00:01"]

1. c4 {[%clk 0:03:00]}  c5 {[%clk 0:02:59]} 2. g3 {[%clk 0:03:01]}  g6 {[%clk 0:02:59]} 3. Bg2 {[%clk 0:03:01]}  Bg7 {[%clk 0:03:00]} 4. Nc3 {[%clk 0:03:01]}  Nf6 {[%clk 0:03:01]} 5. Nf3 {[%clk 0:03:01]}  O-O {[%clk 0:03:01]} 6. O-O {[%clk 0:03:01]}  d6 {[%clk 0:03:02]} 7. d4 {[%clk 0:03:01]}  cxd4 {[%clk 0:03:02]} 8. Nxd4 {[%clk 0:03:00]}  a6 {[%clk 0:03:00]} 9. b3 {[%clk 0:03:00]}  Qc7 {[%clk 0:03:00]} 10. Bb2 {[%clk 0:03:00]}  Bd7 {[%clk 0:03:01]} 11. Rc1 {[%clk 0:03:00]}  Nc6 {[%clk 0:03:02]} 12. Nd5 {[%clk 0:02:59]}  Qd8 {[%clk 0:03:00]} 13. Nxf6+ {[%clk 0:02:59]}  Bxf6 {[%clk 0:03:01]} 14. Nxc6 {[%clk 0:02:58]}  Bxc6 {[%clk 0:03:02]} 15. Bxf6 {[%clk 0:02:57]}  Bxg2 {[%clk 0:03:02]} 16. Bxe7 {[%clk 0:02:51]}  Qxe7 {[%clk 0:03:03]} 17. Kxg2 {[%clk 0:02:51]}  Rfe8 {[%clk 0:03:03]} 18. e3 {[%clk 0:02:49]}  Rad8 {[%clk 0:03:01]} 19. Qf3 {[%clk 0:02:46]}  Rd7 {[%clk 0:02:53]} 20. Rfd1 {[%clk 0:02:46]}  Red8 {[%clk 0:02:52]} 21. Rd5 {[%clk 0:02:44]}  Qe6 {[%clk 0:02:38]} 22. h4 {[%clk 0:02:41]}  h5 {[%clk 0:02:37]} 23. Rcd1 {[%clk 0:02:40]}  Qe7 {[%clk 0:02:37]} 24. Qf4 {[%clk 0:02:36]}  Qe6 {[%clk 0:02:36]} 25. Qg5 {[%clk 0:02:30]}  Qe4+ {[%clk 0:02:30]} 26. Kg1 {[%clk 0:02:30]}  Kg7 {[%clk 0:02:29]} 27. R5d4 {[%clk 0:02:18]}  Qe6 {[%clk 0:02:29]} 28. Qa5 {[%clk 0:02:15]}  Qf6 {[%clk 0:02:03]} 29. Qd2 {[%clk 0:02:11]}  Qe6 {[%clk 0:01:59]} 30. c5 {[%clk 0:02:03]}  d5 {[%clk 0:01:59]} 31. e4 {[%clk 0:02:03]}  Qe7 {[%clk 0:01:53]} 32. b4 {[%clk 0:01:54]}  a5 {[%clk 0:01:26]} 33. a3 {[%clk 0:01:54]}  axb4 {[%clk 0:01:26]} 34. axb4 {[%clk 0:01:54]}  b6 {[%clk 0:01:25]} 35. c6 {[%clk 0:01:50]}  Rd6 {[%clk 0:01:21]} 36. exd5 {[%clk 0:01:49]}  Qf6 {[%clk 0:01:21]} 37. Qd3 {[%clk 0:01:36]}  Qe5 {[%clk 0:01:17]} 38. Kg2 {[%clk 0:01:28]}  Re8 {[%clk 0:01:01]} 39. Qa6 {[%clk 0:01:15]}  Rf6 {[%clk 0:00:30]} 40. R1d2 {[%clk 0:01:00]}  Qc7 {[%clk 0:00:11]} 41. b5 {[%clk 0:00:52]}  Qe5 {[%clk 0:00:02]} 42. Qxb6 {[%clk 0:00:45]}  Qe1 {[%clk 0:00:02]} 43. Qc5 {[%clk 0:00:27]}  Re5 {[%clk 0:00:01]} 44. c7 {[%clk 0:00:21]}  Ref5 {[%clk 0:00:01]} 45. R4d3 {[%clk 0:00:16]} 1-0


[Site "https://www.chess.com"]

[Event "Titled Tuesday Blitz April 18 Early 2023"]
[White "Szente Varga, Fruzsina"]
[Black "djokovic74"]
[WhiteFideId "712264"]
[WhiteElo "1994"]
[BlackElo "2548"]
[Result "0-1"]
[Round "09"]
[TimeControl "180+2"]
[Date "2023.04.18"]
[WhiteClock "0:00:02"]
[BlackClock "0:00:14"]

1. e4 {[%clk 0:03:00]}  e5 {[%clk 0:02:59]} 2. Nf3 {[%clk 0:03:01]}  Nc6 {[%clk 0:03:00]} 3. Bb5 {[%clk 0:03:01]}  a6 {[%clk 0:03:00]} 4. Ba4 {[%clk 0:03:01]}  Nf6 {[%clk 0:03:00]} 5. Qe2 {[%clk 0:03:00]}  b5 {[%clk 0:02:58]} 6. Bb3 {[%clk 0:03:00]}  d6 {[%clk 0:02:50]} 7. O-O {[%clk 0:02:59]}  Be7 {[%clk 0:02:50]} 8. c3 {[%clk 0:02:59]}  O-O {[%clk 0:02:50]} 9. Rd1 {[%clk 0:02:58]}  Be6 {[%clk 0:02:35]} 10. Bc2 {[%clk 0:02:52]}  d5 {[%clk 0:01:59]} 11. d3 {[%clk 0:02:40]}  Re8 {[%clk 0:01:58]} 12. Nbd2 {[%clk 0:02:39]}  Bc5 {[%clk 0:01:53]} 13. Nf1 {[%clk 0:02:38]}  Qe7 {[%clk 0:01:49]} 14. Ng3 {[%clk 0:02:27]}  Rad8 {[%clk 0:01:47]} 15. Bg5 {[%clk 0:02:26]}  h6 {[%clk 0:01:45]} 16. Bh4 {[%clk 0:02:15]}  Bg4 {[%clk 0:01:40]} 17. Bxf6 {[%clk 0:01:56]}  Qxf6 {[%clk 0:01:40]} 18. Kh1 {[%clk 0:01:53]}  d4 {[%clk 0:01:30]} 19. h3 {[%clk 0:01:44]}  Bxf3 {[%clk 0:01:28]} 20. gxf3 {[%clk 0:01:45]}  dxc3 {[%clk 0:01:25]} 21. bxc3 {[%clk 0:01:46]}  b4 {[%clk 0:01:25]} 22. Nf5 {[%clk 0:01:39]}  g6 {[%clk 0:01:11]} 23. Nxh6+ {[%clk 0:01:36]}  Kg7 {[%clk 0:01:12]} 24. Ng4 {[%clk 0:01:31]}  Qh4 {[%clk 0:01:08]} 25. Kg2 {[%clk 0:01:31]}  Rh8 {[%clk 0:01:08]} 26. Rh1 {[%clk 0:01:30]}  bxc3 {[%clk 0:01:08]} 27. Qd1 {[%clk 0:01:00]}  f5 {[%clk 0:00:49]} 28. Ne3 {[%clk 0:01:00]}  Bxe3 {[%clk 0:00:45]} 29. fxe3 {[%clk 0:01:00]}  f4 {[%clk 0:00:45]} 30. Qe1 {[%clk 0:00:37]}  Qg5+ {[%clk 0:00:42]} 31. Kf1 {[%clk 0:00:32]}  fxe3 {[%clk 0:00:39]} 32. Qxc3 {[%clk 0:00:20]}  e2+ {[%clk 0:00:35]} 33. Kxe2 {[%clk 0:00:16]}  Qg2+ {[%clk 0:00:29]} 34. Ke3 {[%clk 0:00:16]}  Nd4 {[%clk 0:00:29]} 35. Bd1 {[%clk 0:00:11]}  Qxh1 {[%clk 0:00:19]} 36. Qxc7+ {[%clk 0:00:10]}  Kh6 {[%clk 0:00:19]} 37. Qxe5 {[%clk 0:00:05]}  Qg1+ {[%clk 0:00:14]} 38. Kd2 {[%clk 0:00:05]}  Qf2+ {[%clk 0:00:14]} 39. Kc3 {[%clk 0:00:03]}  Rc8+ {[%clk 0:00:14]} 40. Kb4 {[%clk 0:00:02]}  Nc6+ {[%clk 0:00:14]} 0-1


[Site "https://www.chess.com"]

[Event "Titled Tuesday Blitz April 18 Early 2023"]
[White "Gontcharov, Vladislav"]
[Black "Fuzesabonyilaci"]
[WhiteFideId "4123492"]
[WhiteElo "2420"]
[BlackElo "2334"]
[Result "1-0"]
[Round "09"]
[TimeControl "180+2"]
[Date "2023.04.18"]
[WhiteClock "0:02:15"]
[BlackClock "0:01:41"]

1. d4 {[%clk 0:03:00]}  Nf6 {[%clk 0:02:53]} 2. c4 {[%clk 0:03:00]}  e6 {[%clk 0:02:51]} 3. Nc3 {[%clk 0:02:59]}  Bb4 {[%clk 0:02:51]} 4. e3 {[%clk 0:02:59]}  c5 {[%clk 0:02:48]} 5. Bd3 {[%clk 0:02:58]}  Nc6 {[%clk 0:02:42]} 6. Ne2 {[%clk 0:02:54]}  d5 {[%clk 0:02:41]} 7. O-O {[%clk 0:02:48]}  O-O {[%clk 0:02:39]} 8. a3 {[%clk 0:02:46]}  Bxc3 {[%clk 0:02:31]} 9. bxc3 {[%clk 0:02:45]}  b6 {[%clk 0:02:25]} 10. cxd5 {[%clk 0:02:43]}  Nxd5 {[%clk 0:02:24]} 11. c4 {[%clk 0:02:30]}  Nf6 {[%clk 0:02:22]} 12. Bb2 {[%clk 0:02:29]}  cxd4 {[%clk 0:02:11]} 13. exd4 {[%clk 0:02:29]}  Bb7 {[%clk 0:02:09]} 14. Ng3 {[%clk 0:02:29]}  Rc8 {[%clk 0:02:04]} 15. Re1 {[%clk 0:02:26]}  h6 {[%clk 0:01:59]} 16. Rc1 {[%clk 0:02:23]}  Qd7 {[%clk 0:01:54]} 17. d5 {[%clk 0:02:16]}  exd5 {[%clk 0:01:47]} 18. Bxf6 {[%clk 0:02:16]}  dxc4 {[%clk 0:01:41]} 19. Bh7+ {[%clk 0:02:15]} 1-0


[Site "https://www.chess.com"]

[Event "Titled Tuesday Blitz April 18 Early 2023"]
[White "Ng, Gary"]
[Black "Jaskolka, Tomasz"]
[WhiteFideId "2604914"]
[BlackFideId "1170791"]
[WhiteElo "2310"]
[BlackElo "2155"]
[Result "0-1"]
[Round "09"]
[TimeControl "180+2"]
[Date "2023.04.18"]
[WhiteClock "0:00:10"]
[BlackClock "0:00:06"]

1. d4 {[%clk 0:03:00]}  d5 {[%clk 0:02:59]} 2. Bf4 {[%clk 0:03:01]}  c5 {[%clk 0:02:57]} 3. e3 {[%clk 0:03:01]}  Nf6 {[%clk 0:02:56]} 4. dxc5 {[%clk 0:03:01]}  Nc6 {[%clk 0:02:54]} 5. Nf3 {[%clk 0:02:57]}  Bg4 {[%clk 0:02:54]} 6. Bb5 {[%clk 0:02:51]}  e6 {[%clk 0:02:54]} 7. b4 {[%clk 0:02:49]}  a5 {[%clk 0:02:51]} 8. c3 {[%clk 0:02:48]}  Be7 {[%clk 0:02:50]} 9. Qa4 {[%clk 0:02:43]}  axb4 {[%clk 0:02:22]} 10. Bxc6+ {[%clk 0:02:43]}  bxc6 {[%clk 0:02:23]} 11. Qxc6+ {[%clk 0:02:40]}  Nd7 {[%clk 0:02:23]} 12. Ne5 {[%clk 0:02:34]}  Rc8 {[%clk 0:02:15]} 13. Qxd7+ {[%clk 0:02:09]}  Qxd7 {[%clk 0:02:15]} 14. Nxd7 {[%clk 0:02:10]}  Kxd7 {[%clk 0:02:15]} 15. cxb4 {[%clk 0:02:10]}  Bf6 {[%clk 0:02:15]} 16. f3 {[%clk 0:01:59]}  Bf5 {[%clk 0:02:08]} 17. e4 {[%clk 0:01:55]}  dxe4 {[%clk 0:02:02]} 18. fxe4 {[%clk 0:01:55]}  Bxe4 {[%clk 0:01:56]} 19. Nd2 {[%clk 0:01:54]}  Bxg2 {[%clk 0:01:47]} 20. O-O-O {[%clk 0:01:28]}  Bxh1 {[%clk 0:01:41]} 21. Ne4+ {[%clk 0:01:26]}  Kc6 {[%clk 0:01:39]} 22. Nxf6 {[%clk 0:00:56]}  gxf6 {[%clk 0:01:34]} 23. Rxh1 {[%clk 0:00:56]}  Rhd8 {[%clk 0:01:27]} 24. Rg1 {[%clk 0:00:51]}  Rd4 {[%clk 0:01:25]} 25. Bd2 {[%clk 0:00:51]}  Ra8 {[%clk 0:01:18]} 26. Bc3 {[%clk 0:00:45]}  Rh4 {[%clk 0:01:15]} 27. Rg2 {[%clk 0:00:34]}  f5 {[%clk 0:01:10]} 28. Kb2 {[%clk 0:00:33]}  f4 {[%clk 0:01:00]} 29. Kb3 {[%clk 0:00:28]}  f3 {[%clk 0:00:54]} 30. Rf2 {[%clk 0:00:27]}  Rf4 {[%clk 0:00:54]} 31. a4 {[%clk 0:00:26]}  f6 {[%clk 0:00:51]} 32. Bd2 {[%clk 0:00:23]}  Rd4 {[%clk 0:00:32]} 33. Bc3 {[%clk 0:00:20]}  Rd3 {[%clk 0:00:32]} 34. Kc4 {[%clk 0:00:19]}  Rxc3+ {[%clk 0:00:13]} 35. Kxc3 {[%clk 0:00:20]}  Rxa4 {[%clk 0:00:14]} 36. Kc4 {[%clk 0:00:21]}  Ra3 {[%clk 0:00:13]} 37. b5+ {[%clk 0:00:20]}  Kc7 {[%clk 0:00:13]} 38. Rd2 {[%clk 0:00:18]}  Ra4+ {[%clk 0:00:11]} 39. Kb3 {[%clk 0:00:17]}  Rf4 {[%clk 0:00:11]} 40. Rf2 {[%clk 0:00:16]}  e5 {[%clk 0:00:12]} 41. Kc3 {[%clk 0:00:16]}  e4 {[%clk 0:00:11]} 42. Kd4 {[%clk 0:00:17]}  f5 {[%clk 0:00:12]} 43. Ke5 {[%clk 0:00:12]}  e3 {[%clk 0:00:09]} 44. Ra2 {[%clk 0:00:12]}  f2 {[%clk 0:00:08]} 45. Ra7+ {[%clk 0:00:08]}  Kb8 {[%clk 0:00:08]} 46. b6 {[%clk 0:00:08]}  f1=Q {[%clk 0:00:08]} 47. Kd6 {[%clk 0:00:09]}  Rd4+ {[%clk 0:00:08]} 48. Kc6 {[%clk 0:00:09]}  Qf3+ {[%clk 0:00:08]} 49. Kb5 {[%clk 0:00:10]}  Qe2+ {[%clk 0:00:09]} 50. Kc6 {[%clk 0:00:10]}  Qg2+ {[%clk 0:00:09]} 51. Kb5 {[%clk 0:00:11]}  Qb2+ {[%clk 0:00:09]} 52. Kc6 {[%clk 0:00:11]}  e2 {[%clk 0:00:04]} 53. Rb7+ {[%clk 0:00:11]}  Kc8 {[%clk 0:00:05]} 54. Rc7+ {[%clk 0:00:11]}  Kd8 {[%clk 0:00:05]} 55. b7 {[%clk 0:00:11]}  e1=Q {[%clk 0:00:05]} 56. Rc8+ {[%clk 0:00:11]}  Ke7 {[%clk 0:00:05]} 57. b8=Q {[%clk 0:00:11]}  Qh1+ {[%clk 0:00:05]} 58. Kc7 {[%clk 0:00:10]}  Rd7# {[%clk 0:00:06]} 0-1


[Site "https://www.chess.com"]

[Event "Titled Tuesday Blitz April 18 Early 2023"]
[White "Shuvalov, Evgenij"]
[Black "Makhmudov, Shukhrat"]
[WhiteFideId "4187237"]
[BlackFideId "14200775"]
[WhiteElo "2080"]
[BlackElo "2135"]
[Result "1-0"]
[Round "09"]
[TimeControl "180+2"]
[Date "2023.04.18"]
[WhiteClock "0:00:19"]
[BlackClock "0:00:03"]

1. d4 {[%clk 0:03:00]}  Nf6 {[%clk 0:02:56]} 2. c4 {[%clk 0:02:54]}  e6 {[%clk 0:02:44]} 3. Nc3 {[%clk 0:02:53]}  d5 {[%clk 0:02:41]} 4. cxd5 {[%clk 0:02:50]}  exd5 {[%clk 0:02:37]} 5. Bg5 {[%clk 0:02:49]}  Be7 {[%clk 0:02:33]} 6. e3 {[%clk 0:02:46]}  O-O {[%clk 0:02:33]} 7. Bd3 {[%clk 0:02:46]}  Nbd7 {[%clk 0:02:32]} 8. Nge2 {[%clk 0:02:42]}  c6 {[%clk 0:02:32]} 9. Qc2 {[%clk 0:02:36]}  Re8 {[%clk 0:02:30]} 10. O-O {[%clk 0:02:34]}  Nf8 {[%clk 0:02:30]} 11. f3 {[%clk 0:02:28]}  a6 {[%clk 0:01:56]} 12. e4 {[%clk 0:02:21]}  dxe4 {[%clk 0:01:35]} 13. fxe4 {[%clk 0:02:22]}  Ng4 {[%clk 0:01:34]} 14. Bf4 {[%clk 0:02:14]}  Bg5 {[%clk 0:01:33]} 15. Qd2 {[%clk 0:02:09]}  Ne6 {[%clk 0:01:21]} 16. Bxg5 {[%clk 0:02:05]}  Qxg5 {[%clk 0:01:21]} 17. Qxg5 {[%clk 0:02:03]}  Nxg5 {[%clk 0:01:21]} 18. e5 {[%clk 0:02:00]}  Be6 {[%clk 0:01:12]} 19. h4 {[%clk 0:01:51]}  Ne3 {[%clk 0:01:01]} 20. Rfc1 {[%clk 0:01:38]}  Nh3+ {[%clk 0:00:22]} 21. gxh3 {[%clk 0:01:38]}  Bxh3 {[%clk 0:00:21]} 22. Ne4 {[%clk 0:01:34]}  Bf5 {[%clk 0:00:20]} 23. Nc5 {[%clk 0:01:30]}  Bxd3 {[%clk 0:00:19]} 24. Nxd3 {[%clk 0:01:31]}  Rad8 {[%clk 0:00:19]} 25. Nc5 {[%clk 0:01:27]}  Re7 {[%clk 0:00:18]} 26. Kf2 {[%clk 0:01:22]}  Nf5 {[%clk 0:00:17]} 27. Nb3 {[%clk 0:01:16]}  Nxh4 {[%clk 0:00:17]} 28. Ke3 {[%clk 0:01:14]}  Nf5+ {[%clk 0:00:17]} 29. Ke4 {[%clk 0:01:14]}  Nd6+ {[%clk 0:00:17]} 30. Kd3 {[%clk 0:01:13]}  Nf5 {[%clk 0:00:17]} 31. Kc3 {[%clk 0:01:07]}  Ne3 {[%clk 0:00:16]} 32. Rg1 {[%clk 0:00:57]}  g6 {[%clk 0:00:16]} 33. Rae1 {[%clk 0:00:56]}  Nd5+ {[%clk 0:00:15]} 34. Kd2 {[%clk 0:00:53]}  h5 {[%clk 0:00:15]} 35. Nc3 {[%clk 0:00:50]}  Nc7 {[%clk 0:00:13]} 36. Kc1 {[%clk 0:00:46]}  Ne6 {[%clk 0:00:13]} 37. Rd1 {[%clk 0:00:43]}  Nf4 {[%clk 0:00:14]} 38. Kb1 {[%clk 0:00:40]}  Rc7 {[%clk 0:00:12]} 39. Ne4 {[%clk 0:00:39]}  Rcd7 {[%clk 0:00:11]} 40. Nf6+ {[%clk 0:00:39]}  Kg7 {[%clk 0:00:11]} 41. Nxd7 {[%clk 0:00:39]}  Rxd7 {[%clk 0:00:12]} 42. Rd2 {[%clk 0:00:34]}  Ne6 {[%clk 0:00:11]} 43. Rgd1 {[%clk 0:00:33]}  Rd5 {[%clk 0:00:11]} 44. Nc1 {[%clk 0:00:30]}  h4 {[%clk 0:00:11]} 45. Ne2 {[%clk 0:00:30]}  g5 {[%clk 0:00:11]} 46. Rg1 {[%clk 0:00:28]}  Kg6 {[%clk 0:00:11]} 47. Kc2 {[%clk 0:00:28]}  Kh5 {[%clk 0:00:11]} 48. Kc3 {[%clk 0:00:27]}  g4 {[%clk 0:00:12]} 49. Rd3 {[%clk 0:00:26]}  g3 {[%clk 0:00:12]} 50. Nxg3+ {[%clk 0:00:25]}  hxg3 {[%clk 0:00:12]} 51. Rdxg3 {[%clk 0:00:26]}  Rxd4 {[%clk 0:00:10]} 52. Rh1+ {[%clk 0:00:25]}  Rh4 {[%clk 0:00:10]} 53. Rxh4+ {[%clk 0:00:25]}  Kxh4 {[%clk 0:00:10]} 54. Rg8 {[%clk 0:00:24]}  Nf4 {[%clk 0:00:07]} 55. Kd4 {[%clk 0:00:22]}  Ne6+ {[%clk 0:00:07]} 56. Ke4 {[%clk 0:00:22]}  Nc5+ {[%clk 0:00:06]} 57. Kf5 {[%clk 0:00:21]}  Nd3 {[%clk 0:00:03]} 58. Rg7 {[%clk 0:00:19]} 1-0


[Site "https://www.chess.com"]

[Event "Titled Tuesday Blitz April 18 Early 2023"]
[White "Kubatko, Ivan"]
[Black "Coelho, Ramyres Santana"]
[WhiteFideId "24111473"]
[BlackFideId "2120690"]
[WhiteElo "2285"]
[BlackElo "1888"]
[Result "1-0"]
[Round "09"]
[TimeControl "180+2"]
[Date "2023.04.18"]
[WhiteClock "0:00:07"]
[BlackClock "0:00:17"]

1. e4 {[%clk 0:03:00]}  c5 {[%clk 0:02:40]} 2. c3 {[%clk 0:03:00]}  d5 {[%clk 0:02:40]} 3. exd5 {[%clk 0:03:00]}  Qxd5 {[%clk 0:02:41]} 4. d4 {[%clk 0:03:01]}  cxd4 {[%clk 0:02:42]} 5. cxd4 {[%clk 0:03:01]}  Nc6 {[%clk 0:02:42]} 6. Nf3 {[%clk 0:03:01]}  e5 {[%clk 0:02:42]} 7. Nc3 {[%clk 0:03:00]}  Bb4 {[%clk 0:02:41]} 8. Bd2 {[%clk 0:03:00]}  Bxc3 {[%clk 0:02:41]} 9. Bxc3 {[%clk 0:03:01]}  exd4 {[%clk 0:02:40]} 10. Nxd4 {[%clk 0:02:57]}  Nxd4 {[%clk 0:02:40]} 11. Bxd4 {[%clk 0:02:34]}  Nf6 {[%clk 0:02:35]} 12. Bxf6 {[%clk 0:02:30]}  Qxd1+ {[%clk 0:02:34]} 13. Rxd1 {[%clk 0:02:31]}  gxf6 {[%clk 0:02:33]} 14. Bb5+ {[%clk 0:02:30]}  Kf8 {[%clk 0:02:25]} 15. Rd8+ {[%clk 0:01:54]}  Kg7 {[%clk 0:02:25]} 16. Rxh8 {[%clk 0:01:54]}  Kxh8 {[%clk 0:02:26]} 17. Kd2 {[%clk 0:01:09]}  Be6 {[%clk 0:02:25]} 18. a3 {[%clk 0:01:01]}  Rd8+ {[%clk 0:02:25]} 19. Ke3 {[%clk 0:01:01]}  a6 {[%clk 0:02:22]} 20. Bd3 {[%clk 0:01:00]}  Bd5 {[%clk 0:02:12]} 21. f3 {[%clk 0:00:56]}  Re8+ {[%clk 0:02:11]} 22. Kd2 {[%clk 0:00:54]}  Rg8 {[%clk 0:02:06]} 23. Bf1 {[%clk 0:00:43]}  h5 {[%clk 0:01:54]} 24. Ke3 {[%clk 0:00:39]}  Re8+ {[%clk 0:01:53]} 25. Kd2 {[%clk 0:00:39]}  Rg8 {[%clk 0:01:52]} 26. Ke3 {[%clk 0:00:39]}  Re8+ {[%clk 0:01:52]} 27. Kd2 {[%clk 0:00:39]}  Rd8 {[%clk 0:01:49]} 28. Ke3 {[%clk 0:00:38]}  Kg7 {[%clk 0:01:48]} 29. Bd3 {[%clk 0:00:35]}  h4 {[%clk 0:01:45]} 30. Rc1 {[%clk 0:00:34]}  Rd7 {[%clk 0:01:45]} 31. Rc8 {[%clk 0:00:34]}  h3 {[%clk 0:01:41]} 32. gxh3 {[%clk 0:00:32]}  Re7+ {[%clk 0:01:41]} 33. Kf2 {[%clk 0:00:32]}  Be6 {[%clk 0:01:41]} 34. Rb8 {[%clk 0:00:30]}  Bxh3 {[%clk 0:01:41]} 35. Be4 {[%clk 0:00:31]}  b5 {[%clk 0:01:23]} 36. Ra8 {[%clk 0:00:27]}  Re6 {[%clk 0:01:13]} 37. Bb7 {[%clk 0:00:26]}  Rd6 {[%clk 0:01:06]} 38. Kg3 {[%clk 0:00:26]}  Be6 {[%clk 0:01:02]} 39. Bxa6 {[%clk 0:00:23]}  Rd2 {[%clk 0:01:01]} 40. Bxb5 {[%clk 0:00:21]}  Rxb2 {[%clk 0:01:01]} 41. a4 {[%clk 0:00:22]}  Rb4 {[%clk 0:00:55]} 42. Bc6 {[%clk 0:00:20]}  f5 {[%clk 0:00:54]} 43. f4 {[%clk 0:00:13]}  Rb3+ {[%clk 0:00:53]} 44. Kf2 {[%clk 0:00:14]}  Rb4 {[%clk 0:00:53]} 45. Ke3 {[%clk 0:00:13]}  Rb3+ {[%clk 0:00:51]} 46. Kd4 {[%clk 0:00:13]}  Rb4+ {[%clk 0:00:51]} 47. Ke5 {[%clk 0:00:13]}  Rb2 {[%clk 0:00:47]} 48. a5 {[%clk 0:00:13]}  Re2+ {[%clk 0:00:47]} 49. Kd6 {[%clk 0:00:13]}  Rd2+ {[%clk 0:00:47]} 50. Kc7 {[%clk 0:00:13]}  Rc2 {[%clk 0:00:45]} 51. Kd6 {[%clk 0:00:13]}  Bc4 {[%clk 0:00:41]} 52. Ke5 {[%clk 0:00:07]}  Bd3 {[%clk 0:00:39]} 53. Bd5 {[%clk 0:00:07]}  Rc5 {[%clk 0:00:38]} 54. Kd4 {[%clk 0:00:07]}  Rxd5+ {[%clk 0:00:37]} 55. Kxd5 {[%clk 0:00:07]}  Be4+ {[%clk 0:00:37]} 56. Ke5 {[%clk 0:00:07]}  Bxa8 {[%clk 0:00:38]} 57. Kxf5 {[%clk 0:00:08]}  Bb7 {[%clk 0:00:28]} 58. h4 {[%clk 0:00:07]}  Bc8+ {[%clk 0:00:28]} 59. Ke5 {[%clk 0:00:06]}  f6+ {[%clk 0:00:26]} 60. Kd6 {[%clk 0:00:04]}  Kg6 {[%clk 0:00:26]} 61. Kc7 {[%clk 0:00:04]}  Ba6 {[%clk 0:00:25]} 62. Kb6 {[%clk 0:00:05]}  Bd3 {[%clk 0:00:24]} 63. a6 {[%clk 0:00:05]}  Kf5 {[%clk 0:00:24]} 64. h5 {[%clk 0:00:05]}  Kxf4 {[%clk 0:00:19]} 65. a7 {[%clk 0:00:05]}  Be4 {[%clk 0:00:17]} 66. h6 {[%clk 0:00:06]}  Kg5 {[%clk 0:00:17]} 67. h7 {[%clk 0:00:06]}  Bxh7 {[%clk 0:00:17]} 68. a8=Q {[%clk 0:00:06]}  f5 {[%clk 0:00:18]} 69. Qg2+ {[%clk 0:00:05]}  Kf6 {[%clk 0:00:18]} 70. Kc5 {[%clk 0:00:04]}  f4 {[%clk 0:00:18]} 71. Kd4 {[%clk 0:00:04]}  Bf5 {[%clk 0:00:19]} 72. Qf3 {[%clk 0:00:04]}  Kg5 {[%clk 0:00:19]} 73. Ke5 {[%clk 0:00:04]}  Bg4 {[%clk 0:00:19]} 74. Qxf4+ {[%clk 0:00:05]}  Kh4 {[%clk 0:00:19]} 75. Kf6 {[%clk 0:00:05]}  Kh3 {[%clk 0:00:18]} 76. Kg5 {[%clk 0:00:05]}  Be2 {[%clk 0:00:18]} 77. Qe3+ {[%clk 0:00:05]}  Kh2 {[%clk 0:00:16]} 78. Qxe2+ {[%clk 0:00:06]}  Kh1 {[%clk 0:00:17]} 79. Qg4 {[%clk 0:00:05]}  Kh2 {[%clk 0:00:15]} 80. Kf4 {[%clk 0:00:06]}  Kh1 {[%clk 0:00:16]} 81. Kf3 {[%clk 0:00:06]}  Kh2 {[%clk 0:00:17]} 82. Qg2# {[%clk 0:00:07]} 1-0


[Site "https://www.chess.com"]

[Event "Titled Tuesday Blitz April 18 Early 2023"]
[White "Chirivi C, Jenny Astrid"]
[Black "Avazkhonov, Alikhon"]
[WhiteFideId "4403061"]
[BlackFideId "14208504"]
[WhiteElo "2001"]
[BlackElo "1739"]
[Result "0-1"]
[Round "09"]
[TimeControl "180+2"]
[Date "2023.04.18"]
[WhiteClock "0:00:10"]
[BlackClock "0:00:07"]

1. d4 {[%clk 0:03:00]}  Nf6 {[%clk 0:02:17]} 2. c4 {[%clk 0:02:58]}  e6 {[%clk 0:02:17]} 3. Nc3 {[%clk 0:02:57]}  Bb4 {[%clk 0:02:17]} 4. Qc2 {[%clk 0:02:57]}  b6 {[%clk 0:02:18]} 5. a3 {[%clk 0:02:45]}  Bxc3+ {[%clk 0:02:17]} 6. Qxc3 {[%clk 0:02:43]}  Bb7 {[%clk 0:02:18]} 7. Nf3 {[%clk 0:02:39]}  O-O {[%clk 0:02:17]} 8. e3 {[%clk 0:02:27]}  d6 {[%clk 0:02:18]} 9. Be2 {[%clk 0:02:26]}  Nbd7 {[%clk 0:02:18]} 10. O-O {[%clk 0:02:26]}  Ne4 {[%clk 0:02:15]} 11. Qc2 {[%clk 0:02:25]}  f5 {[%clk 0:02:15]} 12. b4 {[%clk 0:02:25]}  Rf6 {[%clk 0:02:10]} 13. Rb1 {[%clk 0:02:10]}  Rg6 {[%clk 0:01:40]} 14. c5 {[%clk 0:02:03]}  Bd5 {[%clk 0:01:31]} 15. Bc4 {[%clk 0:01:54]}  Bxc4 {[%clk 0:01:17]} 16. Qxc4 {[%clk 0:01:52]}  Ng5 {[%clk 0:01:18]} 17. Nxg5 {[%clk 0:01:47]}  Qxg5 {[%clk 0:01:19]} 18. g3 {[%clk 0:01:45]}  Qg4 {[%clk 0:01:16]} 19. cxd6 {[%clk 0:01:40]}  cxd6 {[%clk 0:00:46]} 20. Qc6 {[%clk 0:01:39]}  Qe4 {[%clk 0:00:42]} 21. Qxe4 {[%clk 0:01:20]}  fxe4 {[%clk 0:00:43]} 22. b5 {[%clk 0:01:18]}  Rc8 {[%clk 0:00:24]} 23. Bb2 {[%clk 0:01:17]}  Rg5 {[%clk 0:00:22]} 24. Ba1 {[%clk 0:01:09]}  Nf6 {[%clk 0:00:17]} 25. h4 {[%clk 0:01:00]}  Rf5 {[%clk 0:00:17]} 26. Kg2 {[%clk 0:00:58]}  Ng4 {[%clk 0:00:14]} 27. a4 {[%clk 0:00:55]}  Rcf8 {[%clk 0:00:15]} 28. d5 {[%clk 0:00:27]}  Rxf2+ {[%clk 0:00:04]} 29. Rxf2 {[%clk 0:00:25]}  Rxf2+ {[%clk 0:00:05]} 30. Kg1 {[%clk 0:00:25]}  exd5 {[%clk 0:00:06]} 31. Rc1 {[%clk 0:00:23]}  Rf3 {[%clk 0:00:05]} 32. Rc8+ {[%clk 0:00:22]}  Kf7 {[%clk 0:00:04]} 33. Rc7+ {[%clk 0:00:22]}  Ke6 {[%clk 0:00:05]} 34. Rxg7 {[%clk 0:00:18]}  Rxg3+ {[%clk 0:00:06]} 35. Kf1 {[%clk 0:00:15]}  Nxe3+ {[%clk 0:00:06]} 36. Ke2 {[%clk 0:00:15]}  Rxg7 {[%clk 0:00:07]} 37. Bxg7 {[%clk 0:00:14]}  Nf5 {[%clk 0:00:08]} 38. Bb2 {[%clk 0:00:13]}  Nxh4 {[%clk 0:00:08]} 39. Ke3 {[%clk 0:00:13]}  Nf5+ {[%clk 0:00:09]} 40. Kf4 {[%clk 0:00:13]}  h5 {[%clk 0:00:09]} 41. Kg5 {[%clk 0:00:12]}  e3 {[%clk 0:00:09]} 42. Bc3 {[%clk 0:00:11]}  d4 {[%clk 0:00:10]} 43. Be1 {[%clk 0:00:11]}  d3 {[%clk 0:00:08]} 44. Kf4 {[%clk 0:00:10]}  d2 {[%clk 0:00:07]} 0-1


[Site "https://www.chess.com"]